bitfinex/quotes_BTCUSD_20260308
["timestamp","ask_amount","ask_price","bid_price","bid_amount"]
[1772990634292,0.07949112,67113.0,67105.0,0.07451009]
[1772990637255,0.00498991,67113.0,67105.0,0.07451009]
[1772990637650,0.07450068,67114.0,67105.0,0.07451009]
[1772990637864,0.07472002,67115.0,67105.0,0.07451009]
[1772990639329,0.07970993,67115.0,67105.0,0.07451009]
[1772990640335,0.07970993,67115.0,67106.0,0.00148]
[1772990640711,0.07970993,67115.0,67107.0,0.07450787]
[1772990646910,0.07970993,67115.0,67106.0,0.07598867]
[1772990647119,0.00492537,67114.0,67106.0,0.07598878]
[1772990649489,0.07450121,67113.0,67104.0,0.0002]
[1772990649719,0.07450121,67113.0,67107.0,0.00148]
[1772990652945,0.19586126,67111.0,67097.0,0.0002]
[1772990653159,0.0049632,67109.0,67098.0,0.00148]
[1772990653370,0.0049632,67109.0,67099.0,0.00148]
[1772990653551,0.0049632,67109.0,67097.0,0.07471879]
[1772990653552,0.0049632,67109.0,67097.0,0.07471892]
[1772990654007,0.0049632,67109.0,67097.0,0.0002]
[1772990654219,0.0049632,67108.0,67097.0,0.0002]
[1772990654662,0.0049632,67107.0,67093.0,0.0002]
[1772990654879,0.0049632,67098.0,67089.0,0.00035]
[1772990655114,0.0049632,67096.0,67088.0,0.00023]
[1772990655325,0.0049632,67096.0,67089.0,0.00148]
[1772990656171,0.00502814,67096.0,67088.0,0.00023]
[1772990657068,0.0745212,67095.0,67088.0,0.00023]
[1772990657595,0.0049632,67094.0,67088.0,0.00023]
[1772990659123,0.07948662,67093.0,67088.0,0.07475875]
[1772990659337,0.07948662,67093.0,67088.0,0.07495875]
[1772990659543,0.07452342,67093.0,67088.0,0.07495875]
[1772990660151,0.07452342,67093.0,67088.0,0.07495891]
[1772990660366,0.07452342,67093.0,67088.0,0.00043]
[1772990661847,0.0745212,67095.0,67088.0,0.07495839]
[1772990662497,0.0745212,67095.0,67088.0,0.07495828]
[1772990662722,0.0745212,67095.0,67088.0,0.00043]
[1772990663043,0.0745212,67095.0,67088.0,0.0749586]
[1772990663260,0.0745212,67095.0,67088.0,0.00043]
[1772990664741,0.07458503,67096.0,67088.0,0.07495882]
[1772990665320,0.07458503,67096.0,67081.0,0.20642647]
[1772990665321,0.0049632,67093.0,67072.0,0.0001793]
[1772990665538,0.0049632,67088.0,67072.0,0.0016593]
[1772990665752,0.0049632,67085.0,67072.0,0.0016593]
[1772990666328,0.0049632,67085.0,67074.0,0.00168]
[1772990666528,0.19586126,67082.0,67072.0,0.0001793]
[1772990666711,0.07453786,67080.0,67072.0,0.0001793]
[1772990666913,0.0049632,67079.0,67072.0,0.0001793]
[1772990667386,0.0049632,67079.0,67068.0,0.07690655]
[1772990667387,0.0049632,67078.0,67068.0,0.07690655]
[1772990667525,0.0049632,67078.0,67068.0,0.00383616]
[1772990667726,0.0049632,67078.0,67068.0,0.07838649]
[1772990667931,0.07453786,67080.0,67068.0,0.28295366]
[1772990668176,0.07453786,67080.0,67069.0,0.00148]
[1772990669115,0.07453786,67081.0,67069.0,0.00148]
[1772990669264,0.07453786,67081.0,67067.0,0.0002]
[1772990669265,0.19586126,67079.0,67067.0,0.0002]
[1772990669674,0.19586126,67079.0,67064.0,0.00023]
[1772990671089,0.19586126,67077.0,67064.0,0.00023]
[1772990671290,0.19586126,67075.0,67064.0,0.00023]
[1772990672616,0.19686126,67075.0,67064.0,0.00039667]
[1772990673249,0.07454453,67074.0,67064.0,0.00039667]
[1772990673447,0.07450453,67074.0,67064.0,0.00039667]
[1772990673656,0.07453208,67086.0,67066.0,0.20495564]
[1772990673796,0.07453208,67086.0,67065.0,0.07455453]
[1772990673797,0.07453208,67086.0,67072.0,0.00015]
[1772990674017,0.001,67075.0,67072.0,0.00015]
[1772990674232,0.001,67075.0,67068.0,0.00148]
[1772990674437,0.19574088,67081.0,67068.0,0.00148]
[1772990675548,0.07453786,67080.0,67068.0,0.00148]
[1772990675772,0.00148,67079.0,67067.0,0.07455201]
[1772990677523,0.19574088,67078.0,67066.0,0.00148]
[1772990677709,0.07454119,67077.0,67066.0,0.00148]
[1772990678380,0.07454119,67077.0,67064.0,0.07663212]
[1772990678870,0.07454119,67078.0,67065.0,0.00798397]
[1772990679111,0.07469281,67084.0,67068.0,0.00798397]
[1772990679278,0.07469281,67084.0,67071.0,0.20495564]
[1772990679525,0.07469281,67084.0,67073.0,0.00798397]
[1772990679689,0.07469281,67084.0,67075.0,0.00798397]
[1772990681399,0.00022001,67079.0,67075.0,0.00798397]
[1772990681698,0.00022001,67079.0,67074.0,0.07454453]
[1772990681699,0.00022001,67079.0,67077.0,0.00798397]
[1772990682582,0.07475929,67088.0,67079.0,0.00798397]
[1772990682953,0.07475929,67088.0,67076.0,0.07454231]
[1772990683155,0.07475929,67088.0,67076.0,0.08252628]
[1772990683560,0.07475929,67088.0,67077.0,0.00798397]
[1772990684122,0.07475929,67088.0,67075.0,0.00148]
[1772990684123,0.19574088,67087.0,67075.0,0.00148]
[1772990684695,0.00148,67086.0,67072.0,0.08253062]
[1772990685020,0.19722088,67086.0,67072.0,0.08253062]
[1772990685407,0.19722088,67086.0,67067.0,0.08253628]
[1772990685615,0.19722088,67086.0,67068.0,0.07603069]
[1772990685803,0.19722088,67086.0,67069.0,0.00798397]
[1772990686206,0.0745323,67085.0,67070.0,0.07454897]
[1772990686406,0.0745323,67085.0,67071.0,0.00798397]
[1772990688435,0.0745323,67085.0,67072.0,0.07454675]
[1772990688796,0.0745323,67085.0,67072.0,0.08253072]
[1772990689242,0.0745323,67085.0,67073.0,0.00798397]
[1772990689941,0.00148,67084.0,67073.0,0.00798397]
[1772990692037,0.07453453,67083.0,67073.0,0.00798397]
[1772990692209,0.07453453,67083.0,67073.0,0.0825293]
[1772990692724,0.19574088,67082.0,67064.0,0.07515224]
[1772990692933,0.07453453,67083.0,67064.0,0.07515224]
[1772990693140,0.00148,67082.0,67068.0,0.20495564]
[1772990693301,0.00148,67082.0,67069.0,0.00798397]
[1772990694064,0.07453675,67081.0,67070.0,0.00798397]
[1772990694278,0.00039241,67094.0,67070.0,0.00798397]
[1772990694426,0.07452519,67092.0,67074.0,0.00798397]
[1772990694662,0.00022001,67083.0,67076.0,0.20495564]
[1772990694871,0.07452519,67092.0,67077.0,0.00946397]
[1772990695074,0.00022001,67090.0,67077.0,0.00946397]
[1772990695280,0.07452453,67095.0,67077.0,0.00946397]
[1772990695281,1e-08,67103.0,67077.0,0.00946397]
[1772990695529,0.00556,67106.0,67080.0,0.01132112]
[1772990695530,0.07451009,67105.0,67080.0,0.01132112]
[1772990695734,0.07451009,67105.0,67083.0,0.20495564]
[1772990695981,0.00023,67112.0,67088.0,0.07452897]
[1772990696166,0.07471986,67115.0,67093.0,0.20495564]
[1772990696167,0.0747193,67115.0,67093.0,0.20495564]
[1772990696405,0.00022001,67121.0,67088.0,0.07475897]
[1772990696406,0.00022001,67121.0,67096.0,0.20495564]
[1772990696637,0.00022001,67121.0,67094.0,0.00148]
[1772990696638,0.07470487,67128.0,67100.0,0.20495564]
[1772990696785,0.07470654,67127.0,67103.0,0.01132112]
[1772990696993,0.07470654,67127.0,67107.0,0.01132112]
[1772990697241,0.07470654,67127.0,67109.0,0.01132112]
[1772990697242,0.07482548,67127.0,67109.0,0.01132112]
[1772990697451,0.07482548,67127.0,67112.0,0.01132112]
[1772990697697,0.07482548,67127.0,67114.0,0.01132112]
[1772990697904,0.07472215,67147.0,67116.0,0.01132112]
[1772990698118,0.00037057,67147.0,67120.0,0.01132112]
[1772990698340,0.07483425,67147.0,67124.0,0.01132112]
[1772990698567,0.00148,67146.0,67127.0,0.20495564]
[1772990698778,0.00148,67146.0,67130.0,0.01132112]
[1772990699003,0.00148,67146.0,67134.0,0.01132112]
[1772990699219,0.00148,67146.0,67135.0,0.01132112]
[1772990700104,0.00148,67146.0,67136.0,0.07447569]
[1772990700339,0.0744657,67145.0,67137.0,0.01132112]
[1772990700551,0.07594478,67146.0,67137.0,0.01132112]
[1772990700975,0.19574088,67145.0,67118.0,0.07449566]
[1772990701187,0.19574088,67145.0,67120.0,0.00566056]
[1772990701401,0.19574088,67145.0,67123.0,0.20495564]
[1772990701618,0.00037057,67147.0,67126.0,0.00566056]
[1772990701822,0.00037057,67147.0,67117.0,0.07449677]
[1772990701823,0.19574088,67143.0,67118.0,0.00566056]
[1772990702033,0.621773,67142.0,67113.0,0.08016095]
[1772990702261,0.621773,67142.0,67112.0,0.07473217]
[1772990702262,0.89971,67136.0,67112.0,0.00023]
[1772990702464,0.89971,67136.0,67092.0,0.07452379]
[1772990702465,0.19574088,67133.0,67102.0,0.00587486]
[1772990702677,0.00148,67135.0,67106.0,0.08006826]
[1772990702678,0.19574088,67131.0,67106.0,0.08006826]
[1772990702891,0.00015,67106.0,67104.0,0.07598898]
[1772990703104,0.00015,67106.0,67102.0,0.07472755]
[1772990703105,0.22458288,67115.0,67102.0,0.0016943]
[1772990703327,0.00433942,67112.0,67102.0,0.0002143]
[1772990703561,0.21876346,67111.0,67102.0,0.0002143]
[1772990704220,0.07450454,67110.0,67102.0,0.00061097]
[1772990704652,0.07423239,67110.0,67102.0,0.00061097]
[1772990704868,0.07423239,67110.0,67099.0,0.07451637]
[1772990704869,0.29376342,67110.0,67099.0,0.07451637]
[1772990705079,0.21876346,67110.0,67099.0,0.07463531]
[1772990705833,0.07450391,67111.0,67099.0,0.07463531]
[1772990706491,0.21953476,67110.0,67099.0,0.07463531]
[1772990707405,0.07878266,67111.0,67099.0,0.07463531]
[1772990707406,0.07450391,67111.0,67099.0,0.07463531]
[1772990707601,0.07450391,67111.0,67099.0,0.07920812]
[1772990708143,0.07447712,67135.0,67100.0,0.00148]
[1772990708355,0.21953476,67130.0,67103.0,0.00457281]
[1772990708575,0.21953476,67125.0,67099.0,0.00011894]
[1772990708788,0.00427875,67122.0,67099.0,0.00011894]
[1772990709008,0.00148,67124.0,67099.0,0.00485486]
[1772990709009,0.00427875,67120.0,67099.0,0.00485486]
[1772990709227,0.21953476,67117.0,67099.0,0.00633486]
[1772990709442,0.00427875,67114.0,67099.0,0.00633486]
[1772990709654,0.00022001,67111.0,67099.0,0.00633486]
[1772990709784,0.00022001,67111.0,67099.0,0.00011894]
[1772990710008,0.22381351,67109.0,67099.0,0.00011894]
[1772990710451,0.07450676,67108.0,67099.0,0.00011894]
[1772990711098,0.07943122,67108.0,67099.0,0.00011894]
[1772990711393,0.00492446,67107.0,67099.0,0.00011894]
[1772990711966,0.00492446,67107.0,67090.0,0.00148]
[1772990711967,0.00492446,67105.0,67090.0,0.00148]
[1772990712175,0.00492446,67103.0,67090.0,0.00148]
[1772990712607,0.07451342,67102.0,67089.0,0.07476375]
[1772990714449,0.07943788,67102.0,67089.0,0.07476375]
[1772990715919,0.00492446,67102.0,67089.0,0.07476375]
[1772990716356,0.07943844,67102.0,67089.0,0.07476375]
[1772990716573,0.00148,67110.0,67090.0,0.20183479]
[1772990716754,0.07450454,67110.0,67093.0,0.00473592]
[1772990716952,0.07450454,67110.0,67095.0,0.20183479]
[1772990717196,0.07450454,67110.0,67096.0,0.00473592]
[1772990717382,0.0762041,67111.0,67096.0,0.00473592]
[1772990717536,0.0762041,67111.0,67097.0,0.07925489]
[1772990717769,0.0747241,67111.0,67097.0,0.00473592]
[1772990717974,0.00492446,67109.0,67094.0,0.07600229]
[1772990718184,0.21953476,67107.0,67094.0,0.07600229]
[1772990718368,0.00492446,67106.0,67094.0,0.07600229]
[1772990718998,0.0762041,67111.0,67095.0,0.02223491]
[1772990719210,0.21953476,67110.0,67095.0,0.02223491]
[1772990719644,0.07450565,67109.0,67096.0,0.07452009]
[1772990721768,0.29404041,67109.0,67095.0,0.09675581]
[1772990723034,0.07450565,67109.0,67096.0,0.02223491]
[1772990723749,0.07598565,67109.0,67098.0,0.02223491]
[1772990724167,0.07450565,67110.0,67098.0,0.02223491]
[1772990724375,0.07450565,67110.0,67100.0,0.02223491]
[1772990724579,0.07450565,67110.0,67100.0,0.02371491]
[1772990725830,0.0747236,67111.0,67102.0,0.02223491]
[1772990726408,0.00148,67114.0,67102.0,0.02223491]
[1772990726581,0.00039667,67114.0,67103.0,0.20183479]
[1772990726795,0.00039667,67114.0,67104.0,0.02223491]
[1772990727983,0.07450121,67113.0,67106.0,0.02223491]
[1772990729189,0.07489788,67114.0,67105.0,0.02223491]
[1772990729414,0.00022001,67118.0,67105.0,0.20183479]
[1772990729653,0.00022001,67118.0,67104.0,0.07451112]
[1772990729654,0.00033892,67118.0,67108.0,0.20183479]
[1772990729874,0.00033892,67118.0,67109.0,0.02223491]
[1772990730087,0.00033892,67118.0,67110.0,0.07450454]
[1772990730271,0.00033892,67118.0,67111.0,0.02223491]
[1772990731578,0.07483489,67118.0,67111.0,0.02223491]
[1772990731759,0.0748347,67118.0,67111.0,0.02223491]
[1772990732513,0.0748347,67118.0,67101.0,0.07451392]
[1772990732702,0.0748347,67118.0,67102.0,0.02223491]
[1772990733262,0.0748347,67118.0,67104.0,0.02223491]
[1772990734109,0.00148,67117.0,67104.0,0.02223491]
[1772990734404,0.07449788,67116.0,67106.0,0.02223491]
[1772990736388,0.07449788,67116.0,67107.0,0.02223491]
[1772990741714,0.07449788,67116.0,67108.0,0.02223491]
[1772990742112,0.07449788,67116.0,67105.0,0.00148]
[1772990742300,0.28562202,67116.0,67105.0,0.00148]
[1772990742705,0.28562202,67116.0,67105.0,0.0759899]
[1772990742904,0.07449788,67116.0,67105.0,0.0759899]
[1772990743635,0.07449788,67116.0,67105.0,0.09822481]
[1772990745207,0.07449788,67116.0,67097.0,0.0002]
[1772990745412,0.21112414,67115.0,67098.0,0.00148]
[1772990745607,0.21112414,67115.0,67099.0,0.01111746]
[1772990748034,0.0745001,67114.0,67100.0,0.07451564]
[1772990748228,0.0745001,67114.0,67101.0,0.01111746]
[1772990748431,0.21112414,67113.0,67097.0,0.07471884]
[1772990748847,0.21112414,67113.0,67098.0,0.00148]
[1772990749049,0.21112414,67113.0,67098.0,0.01259746]
[1772990749253,0.21112414,67113.0,67099.0,0.00148]
[1772990749478,0.21112414,67113.0,67099.0,0.01259746]
[1772990750065,0.07598232,67112.0,67098.0,0.0002]
[1772990750289,0.07598232,67112.0,67097.0,0.0002]
[1772990750290,0.21112414,67109.0,67097.0,0.0002]
[1772990752482,0.21112414,67107.0,67097.0,0.0002]
[1772990752676,0.00148,67106.0,67097.0,0.0002]
[1772990753798,0.00148,67106.0,67091.0,0.0002]
[1772990753799,0.21112414,67105.0,67089.0,0.00054631]
[1772990754199,0.21112414,67105.0,67089.0,0.07507379]
[1772990754421,0.00148,67106.0,67090.0,0.01111746]
[1772990754593,0.07451009,67105.0,67090.0,0.01111746]
[1772990754924,0.00148,67104.0,67090.0,0.01111746]
[1772990755313,0.07451009,67105.0,67090.0,0.01111746]
[1772990755533,0.00148,67103.0,67090.0,0.01111746]
[1772990755930,0.00148,67102.0,67090.0,0.01111746]
[1772990756681,0.07451453,67101.0,67090.0,0.01111746]
[1772990757353,0.07451453,67101.0,67097.0,0.0002]
[1772990758722,0.07451675,67099.0,67097.0,0.00047351]
[1772990759515,0.07451675,67099.0,67089.0,0.00035]
[1772990759714,0.21112414,67098.0,67084.0,0.07473285]
[1772990760064,0.21112414,67098.0,67084.0,0.08585031]
[1772990760223,0.21112414,67098.0,67085.0,0.01111746]
[1772990760613,0.07451897,67097.0,67085.0,0.01111746]
[1772990761521,0.28564311,67097.0,67085.0,0.01111746]
[1772990761721,0.28564311,67097.0,67085.0,0.01151413]
[1772990762563,0.21112414,67094.0,67076.0,0.01398825]
[1772990762790,0.21112414,67094.0,67079.0,0.00011903]
[1772990762791,0.21613378,67089.0,67079.0,0.00011903]
[1772990762977,0.21613378,67089.0,67060.0,0.07475976]
[1772990763186,0.04935973,67090.0,67060.0,0.07475976]
[1772990763187,0.21613378,67079.0,67061.0,0.023556]
[1772990763514,0.21613378,67077.0,67065.0,0.00031903]
[1772990765092,0.07454231,67076.0,67065.0,0.00031903]
[1772990765306,0.07453453,67083.0,67068.0,0.023556]
[1772990765659,0.07453453,67085.0,67065.0,0.07487283]
[1772990765660,0.00148,67085.0,67072.0,0.21477424]
[1772990765858,0.00148,67085.0,67073.0,0.023556]
[1772990766134,0.074529,67088.0,67073.0,0.023556]
[1772990766341,0.00148,67086.0,67073.0,0.023556]
[1772990767706,0.0745323,67085.0,67075.0,0.00762309]
[1772990768832,0.00148,67093.0,67076.0,0.21625424]
[1772990769030,0.00148,67093.0,67079.0,0.00762309]
[1772990769227,0.00148,67093.0,67081.0,0.00762309]
[1772990769631,0.07452009,67096.0,67082.0,0.07453564]
[1772990769838,0.00148,67095.0,67083.0,0.00762309]
[1772990770200,0.07452009,67096.0,67083.0,0.00762309]
[1772990770418,0.00148,67095.0,67083.0,0.00762309]
[1772990770626,0.00148,67094.0,67083.0,0.00762309]
[1772990771030,0.07452009,67096.0,67083.0,0.00762309]
[1772990771230,0.00148,67095.0,67083.0,0.00762309]
[1772990771684,0.21554709,67092.0,67075.0,0.0002]
[1772990772858,0.21554709,67092.0,67075.0,0.0012]
[1772990773890,0.21554709,67090.0,67075.0,0.0012]
[1772990774093,0.21550709,67090.0,67068.0,0.07475065]
[1772990774469,0.21550709,67090.0,67068.0,0.08385374]
[1772990774845,0.21550709,67090.0,67069.0,0.00762309]
[1772990775009,0.21550709,67090.0,67075.0,0.001]
[1772990775195,0.21550709,67090.0,67069.0,0.00762309]
[1772990776175,0.21554709,67088.0,67070.0,0.00762309]
[1772990776381,0.21554709,67086.0,67070.0,0.00762309]
[1772990776811,0.21554709,67086.0,67072.0,0.00015]
[1772990778130,0.21554709,67086.0,67068.0,0.0002]
[1772990778131,0.21554709,67084.0,67068.0,0.0002]
[1772990778693,0.21554709,67084.0,67068.0,0.00782309]
[1772990780251,0.21554709,67082.0,67068.0,0.00782309]
[1772990780453,0.21554709,67080.0,67068.0,0.00782309]
[1772990782318,0.07453897,67079.0,67068.0,0.00782309]
[1772990782728,0.07453897,67079.0,67070.0,0.00762309]
[1772990782923,0.07453897,67079.0,67071.0,0.00762309]
[1772990783551,0.07453897,67079.0,67072.0,0.00762309]
[1772990785249,0.07453897,67081.0,67073.0,0.00762309]
[1772990787303,0.07453897,67081.0,67070.0,0.00148]
[1772990787481,0.29008606,67081.0,67070.0,0.00148]
[1772990787680,0.07453897,67081.0,67070.0,0.07602877]
[1772990787851,0.07453897,67081.0,67071.0,0.00762309]
[1772990789305,0.21554709,67080.0,67068.0,0.0002]
[1772990789517,0.0023769,67079.0,67068.0,0.0002]
[1772990789690,0.21554709,67078.0,67068.0,0.0002]
[1772990789859,0.00148,67077.0,67068.0,0.0002]
[1772990790476,0.00068989,67077.0,67068.0,0.0012]
[1772990790675,0.00068989,67077.0,67068.0,0.0002]
[1772990792351,0.07454231,67076.0,67068.0,0.0002]
[1772990794878,0.07454231,67076.0,67068.0,0.00472749]
[1772990798382,0.20398336,67082.0,67068.0,0.00472749]
[1772990798383,0.07453563,67083.0,67069.0,0.07455009]
[1772990798583,0.07453563,67083.0,67072.0,0.2201557]
[1772990798757,0.07453563,67083.0,67073.0,0.00483277]
[1772990799966,0.07453563,67083.0,67073.0,0.00427372]
[1772990801120,0.00022001,67077.0,67073.0,0.00427372]
[1772990802376,0.07454231,67076.0,67073.0,0.00427372]
[1772990802598,0.00022001,67077.0,67073.0,0.07454507]
[1772990802799,0.00022001,67077.0,67074.0,0.00499684]
[1772990803485,0.07453544,67083.0,67074.0,0.00499684]
[1772990803690,0.07453112,67088.0,67076.0,0.00499684]
[1772990803934,0.07453112,67088.0,67077.0,0.00499684]
[1772990805098,0.07453112,67088.0,67078.0,0.00148]
[1772990805306,0.07453112,67088.0,67078.0,0.00092272]
[1772990806677,0.07474898,67091.0,67078.0,0.00092272]
[1772990806678,0.00022001,67091.0,67079.0,0.2201557]
[1772990806952,0.07474614,67091.0,67079.0,0.2201557]
[1772990807127,0.07474614,67091.0,67080.0,0.07453786]
[1772990807506,0.00022001,67088.0,67080.0,0.07453786]
[1772990808537,0.00022001,67088.0,67080.0,0.29469356]
[1772990813026,0.0760034,67094.0,67080.0,0.29469356]
[1772990813027,0.07599516,67101.0,67081.0,0.2216357]
[1772990814354,0.08752624,67101.0,67083.0,0.2201557]
[1772990816299,0.08752624,67101.0,67084.0,0.07453342]
[1772990816601,0.08752624,67101.0,67084.0,0.29468912]
[1772990816781,0.08752624,67101.0,67085.0,0.2201557]
[1772990817776,0.07473517,67101.0,67085.0,0.2201557]
[1772990818038,0.51895194,67131.0,67085.0,0.2201557]
[1772990818039,0.08021902,67106.0,67085.0,0.2201557]
[1772990818265,0.08774183,67105.0,67086.0,0.07453119]
[1772990818494,0.08774183,67105.0,67087.0,0.2216357]
[1772990819168,0.00571,67106.0,67087.0,0.2216357]
[1772990819372,0.00582897,67106.0,67087.0,0.2216357]
[1772990820024,0.00582897,67106.0,67087.0,0.2226357]
[1772990820276,0.00582897,67106.0,67087.0,0.2216357]
[1772990820500,0.00582897,67106.0,67089.0,0.2201557]
[1772990820703,0.00023,67112.0,67089.0,0.2201557]
[1772990820906,0.0747328,67112.0,67089.0,0.22027467]
[1772990821281,0.00023,67112.0,67089.0,0.22027467]
[1772990821802,0.0747197,67115.0,67089.0,0.22027467]
[1772990821803,0.00022001,67115.0,67090.0,0.2201557]
[1772990822468,0.00022001,67115.0,67092.0,0.2201557]
[1772990822469,1e-08,67115.0,67092.0,0.2201557]
[1772990822791,1e-08,67115.0,67094.0,0.20803981]
[1772990822995,1e-08,67115.0,67093.0,0.00148]
[1772990823240,1e-08,67115.0,67094.0,0.20803981]
[1772990824606,0.37044232,67162.0,67095.0,0.0745212]
[1772990824607,0.00022001,67125.0,67095.0,0.0745212]
[1772990824812,0.00022001,67125.0,67097.0,0.20803981]
[1772990825047,0.01323168,67123.0,67097.0,0.20803981]
[1772990825358,0.07470828,67125.0,67097.0,0.20803981]
[1772990825359,0.01323168,67122.0,67097.0,0.20803981]
[1772990825668,0.00022001,67127.0,67100.0,0.22287772]
[1772990825799,0.00022001,67127.0,67102.0,0.22287772]
[1772990826472,0.01345169,67127.0,67102.0,0.22287772]
[1772990826923,0.01345169,67127.0,67104.0,0.22287772]
[1772990828768,0.22055723,67126.0,67103.0,0.07451231]
[1772990828965,0.22055723,67126.0,67106.0,0.2973867]
[1772990828966,0.07448807,67125.0,67106.0,0.2973867]
[1772990829198,0.01221367,67124.0,67106.0,0.2973867]
[1772990829779,0.01221367,67123.0,67106.0,0.07450898]
[1772990829982,0.22055723,67123.0,67106.0,0.07450898]
[1772990830140,0.01221367,67121.0,67106.0,0.07450898]
[1772990830961,0.27139553,67120.0,67097.0,0.07451897]
[1772990831267,0.01221367,67115.0,67097.0,0.07451897]
[1772990831466,0.22055723,67112.0,67097.0,0.07451897]
[1772990831658,0.0508383,67120.0,67097.0,0.07451897]
[1772990831659,0.01221367,67110.0,67097.0,0.07451897]
[1772990833177,0.01221367,67109.0,67097.0,0.07451897]
[1772990833402,0.22055723,67106.0,67090.0,0.07452604]
[1772990833604,0.01221367,67104.0,67090.0,0.07452604]
[1772990834979,0.07451231,67103.0,67090.0,0.07452604]
[1772990835200,0.01221367,67102.0,67090.0,0.07452604]
[1772990836934,0.01221367,67102.0,67095.0,0.0002]
[1772990837142,0.07451453,67101.0,67095.0,0.0002]
[1772990838969,0.07451453,67101.0,67088.0,0.000699]
[1772990838970,0.22055723,67099.0,67088.0,0.000699]
[1772990839120,0.22055723,67099.0,67082.0,0.07453518]
[1772990839121,0.29507843,67095.0,67082.0,0.07453518]
[1772990839325,0.01221367,67094.0,67083.0,0.00148]
[1772990839528,0.01221367,67092.0,67081.0,0.07621453]
[1772990839759,0.01221367,67091.0,67081.0,0.07621453]
[1772990839959,0.01221367,67091.0,67082.0,0.00148]
[1772990840781,0.01221367,67091.0,67089.0,0.00015]
[1772990841963,0.01321367,67091.0,67089.0,0.00015]
[1772990844231,0.01221367,67090.0,67083.0,0.07453453]
[1772990844442,0.22055723,67089.0,67069.0,0.17799302]
[1772990844592,0.07552581,67091.0,67074.0,0.00148]
[1772990844593,0.22055723,67086.0,67074.0,0.00148]
[1772990844796,0.01221367,67085.0,67074.0,0.00148]
[1772990846446,0.08674709,67084.0,67075.0,0.07454342]
[1772990848008,0.22055723,67083.0,67075.0,0.07454342]
[1772990848209,0.01221367,67082.0,67075.0,0.07454342]
[1772990848551,0.01221367,67082.0,67074.0,0.07602342]
[1772990848552,0.01221367,67081.0,67074.0,0.00148]
[1772990849693,0.01221367,67081.0,67075.0,0.07454342]
[1772990850721,0.07453675,67081.0,67067.0,0.07475193]
[1772990850939,0.22055723,67076.0,67067.0,0.07623193]
[1772990851206,0.01221367,67075.0,67067.0,0.07623193]
[1772990851938,0.01221367,67075.0,67068.0,0.00148]
[1772990852619,0.01221367,67080.0,67068.0,0.00148]
[1772990857413,0.005,67078.0,67072.0,0.00015]
[1772990859796,0.07952119,67077.0,67072.0,0.00015]
[1772990861536,0.07452729,67090.0,67072.0,0.00015]
[1772990861701,0.00757893,67089.0,67074.0,0.07454453]
[1772990861908,0.00757893,67089.0,67075.0,0.00148]
[1772990863911,0.08210557,67088.0,67076.0,0.07454231]
[1772990869014,0.0075766,67087.0,67076.0,0.07454231]
[1772990869363,0.0054766,67087.0,67076.0,0.07454231]
[1772990870394,0.07453119,67086.0,67076.0,0.07454231]
[1772990872831,0.08000733,67087.0,67076.0,0.07454231]
[1772990873005,0.07474901,67088.0,67077.0,0.001]
[1772990874766,0.07474901,67088.0,67078.0,0.07454008]
[1772990877666,0.08140557,67089.0,67078.0,0.07454008]
[1772990877667,0.0068766,67089.0,67078.0,0.07454008]
[1772990877835,0.07452648,67091.0,67078.0,0.07454008]
[1772990878277,0.00022001,67088.0,67078.0,0.07454008]
[1772990879168,0.07453008,67087.0,67078.0,0.07454008]
[1772990882651,0.00170001,67092.0,67078.0,0.07454008]
[1772990882652,0.00022001,67092.0,67078.0,0.07454008]
[1772990882983,0.00022001,67092.0,67079.0,0.21541094]
[1772990884044,0.00022001,67092.0,67080.0,0.07453786]
[1772990884244,0.00022001,67092.0,67081.0,0.00148]
[1772990885268,0.00022001,67092.0,67082.0,0.07453564]
[1772990888182,0.00022001,67099.0,67083.0,0.20427761]
[1772990888395,0.00033902,67099.0,67083.0,0.20427761]
[1772990888593,0.00048901,67102.0,67082.0,0.07453564]
[1772990888797,0.07450836,67107.0,67087.0,0.20427761]
[1772990889001,0.07450836,67107.0,67089.0,0.20427761]
[1772990889200,0.07450787,67108.0,67089.0,0.20427761]
[1772990889420,0.07450789,67107.0,67090.0,0.27880436]
[1772990889642,0.01280311,67106.0,67090.0,0.27880436]
[1772990889841,0.0804391,67106.0,67090.0,0.27880436]
[1772990890047,0.0068731,67105.0,67090.0,0.27880436]
[1772990893355,0.0068731,67105.0,67090.0,0.07452675]
[1772990893686,0.07450446,67111.0,67092.0,0.00312804]
[1772990893836,0.07450446,67111.0,67094.0,0.20427761]
[1772990893837,0.0045345,67111.0,67094.0,0.20427761]
[1772990894039,0.0045345,67111.0,67095.0,0.00312804]
[1772990894441,0.0045345,67111.0,67097.0,0.00312804]
[1772990894637,0.0045345,67111.0,67098.0,0.00148]
[1772990894974,0.21005745,67105.0,67091.0,0.00148]
[1772990895177,0.005,67102.0,67091.0,0.00148]
[1772990895377,0.005,67101.0,67091.0,0.00148]
[1772990895945,0.005,67100.0,67091.0,0.00148]
[1772990897557,0.005,67100.0,67092.0,0.07452453]
[1772990897774,0.00022001,67105.0,67092.0,0.07452453]
[1772990897944,0.00022001,67105.0,67095.0,0.20913629]
[1772990898730,0.00022001,67105.0,67095.0,0.00485868]
[1772990899142,0.00022001,67105.0,67092.0,0.07452453]
[1772990902979,0.00022001,67105.0,67093.0,0.20427761]
[1772990903539,0.00022001,67105.0,67092.0,0.07452453]
[1772990907969,0.16364,67104.0,67078.0,0.17744707]
[1772990908173,0.16364,67104.0,67076.0,0.0002]
[1772990908174,0.21005745,67099.0,67076.0,0.0002]
[1772990908414,0.005,67095.0,67077.0,0.00116]
[1772990908647,0.005,67095.0,67077.0,0.07570105]
[1772990908648,0.21005745,67091.0,67077.0,0.07570105]
[1772990908959,0.005,67089.0,67077.0,0.07570105]
[1772990909212,0.00148,67089.0,67077.0,0.07570105]
[1772990909484,0.005,67088.0,67077.0,0.07570105]
[1772990909836,0.005,67088.0,67084.0,0.0002]
[1772990910852,0.005,67086.0,67084.0,0.0002]
[1772990911458,0.005,67086.0,67077.0,0.07718109]
[1772990913424,0.0795323,67085.0,67077.0,0.07718109]
[1772990913572,0.0795323,67085.0,67077.0,0.08851211]
[1772990918297,0.0795323,67085.0,67077.0,0.07718109]
[1772990918503,0.0795323,67085.0,67078.0,0.01133102]
[1772990923372,0.0795323,67085.0,67043.0,0.0002201]
[1772990923373,0.005,67083.0,67043.0,0.0002201]
[1772990923572,0.00485,67068.0,67058.0,0.00207]
[1772990923888,0.004925,67065.0,67059.0,0.00148]
[1772990924718,0.00503137,67065.0,67059.0,0.00148]
[1772990925415,0.005,67063.0,67059.0,0.00148]
[1772990927935,0.005,67063.0,67059.0,0.07604105]
[1772990928728,0.00496,67063.0,67059.0,0.07604105]
[1772990929745,0.07455787,67063.0,67055.0,0.0002201]
[1772990929947,0.00666011,67061.0,67056.0,0.00148]
[1772990930147,0.00666011,67061.0,67056.0,0.00144]